Cogmind - Beta 13 @@@ ROGUE MODE // 2024.07.04 @ 18:54:06 Player: harambe Result: Destroyed by G-50 Soldier with Heavy Laser Performance ------------- Evolutions (2) 1000 Regions Visited (5) 1000 Robots Destroyed (10) 50 Value Destroyed (332) 332 Prototype IDs (3) 60 Alien Tech Used (0) 0 Bonus (300) 300 TOTAL SCORE: 2742 Bonus ------- Aligned with FarCom 300 Cogmind --------- Core Integrity 0/550 Matter 263/300 Energy 100/100 System Corruption 0% Temperature Cool (18) Movement Core (400) Ox7 Location -8/Materials Parts ------- > --- POWER (1) -------- (None) > --- PROPULSION (3) --- (None) > --- UTILITY (5) ------ Large Storage Unit Transport Network Coupler > --- WEAPON (2) ------- Rocket Launcher > --- INVENTORY (15) --- Improved Ion Engine Improved Ion Engine Cesium-ion Thruster Heat Sink Medium Storage Unit Terrain Scan Processor Thief Drone Bay (3/3) Improved Grenade Launcher Peak State ------------ > --- POWER ------------ Light Ion Engine > --- PROPULSION ------- Aluminum Leg Wheel Compact Wheel > --- UTILITY ---------- Large Storage Unit 0b10 Alert Chip Thief Drone Bay > --- WEAPON ----------- Light Assault Rifle Mining Laser > --- INVENTORY -------- Ion Engine Aluminum Leg Heat Sink Medium Storage Unit Terrain Scan Processor Small Laser Beam Cannon Rocket Launcher [Rating: 21] Favorites ----------- Power Light Ion Engine Engine Light Ion Engine Propulsion Compact Wheel Treads Light Treads Leg Aluminum Leg Wheel Compact Wheel Utility Large Storage Unit Device Thief Drone Bay Storage Large Storage Unit Processor 0b10 Alert Chip Protection Light Armor Plating Weapon Light Assault Rifle Energy Gun EM Pulse Gun Energy Cannon Beam Cannon Ballistic Gun Light Assault Rifle Launcher Rocket Launcher Special Weapon Mining Laser Build | -11 -10 -10 -10 -9 -8 ------- Run | Yrd Mat Min Exi Min Mat Slots Evolved 4 | . . . . . 4 Power . | . . . . . . Propulsion 1 | . . . . . 1 Utility 3 | . . . . . 3 Weapon . | . . . . . . Parts Attached 31 | 6 3 3 4 . 15 Power 3 | 1 . . . . 2 Engine 3 | 1 . . . . 2 Core . | . . . . . . Reactor . | . . . . . . Propulsion 7 | 2 . 1 . . 4 Treads 2 | . . . . . 2 Leg 2 | . . . . . 2 Wheel 3 | 2 . 1 . . . Hover . | . . . . . . Flight . | . . . . . . Utility 9 | 1 2 1 2 . 3 Device 1 | . . . . . 1 Storage 5 | 1 2 1 1 . . Processor 2 | . . . 1 . 1 Hackware . | . . . . . . Protection 1 | . . . . . 1 Artifact . | . . . . . . Weapon 12 | 2 1 1 2 . 6 Energy Gun 2 | 1 . . . . 1 Energy Cannon 3 | . . . 1 . 2 Ballistic Gun 2 | 1 . . . . 1 Ballistic Cannon . | . . . . . . Launcher 2 | . . 1 . . 1 Special Weapon 3 | . 1 . 1 . 1 Impact Weapon . | . . . . . . Slashing Weapon . | . . . . . . Piercing Weapon . | . . . . . . Special Melee Weapon . | . . . . . . Unidentified Prototypes 3 | . . . 2 . 1 Parts Lost 15 | . . . . . 15 Power 3 | . . . . . 3 Propulsion 6 | . . . . . 6 Utility 2 | . . . . . 2 Weapon 4 | . . . . . 4 Highest Loss Streak 10 | . . . . . 10 To Critical Strikes . | . . . . . . Average Slot Usage (%) 82 | . 97 100 99 100 52 Engine 11 | . 14 14 14 14 7 Leg 1 | . . . . . 4 Wheel 20 | . 28 28 28 28 8 Storage 16 | . 25 28 18 14 9 Processor 5 | . . . 8 14 6 Protection 1 | . . . . . 2 Energy Gun 3 | . 13 . . . 3 Ballistic Gun 9 | . 14 14 14 14 1 Special Weapon 7 | . . 11 13 14 3 Naked Turns . | . . . . . . Heaviest Build 34 | 11 20 21 25 25 34 Greatest Support 26 | 26 26 26 26 26 26 Greatest Overweight (x) 11 | 1 . . . . 11 Average Overweight (x) . | . . . . . 1 Largest Inventory Capacity 15 | 8 10 10 15 15 15 Average Capacity 12 | 7 9 10 10 15 15 Most Carried 13 | 8 10 10 10 10 13 Average Carried 9 | 4 8 9 9 10 9 Final Capacity 15 | 8 10 10 15 15 15 Final Carried 10 | 6 10 10 10 10 8 Class Distribution -------------------- 100% | Mutant Dominant Class ---------------- Mutant | -10/Materials Mutant | -10/Mines Mutant | -10/Exiles Mutant | -9/Mines Mutant | -8/Materials Resources | -11 -10 -10 -10 -9 -8 ----------- Run | Yrd Mat Min Exi Min Mat Matter Collected 502 | 198 94 59 . 35 116 Remotely . | . . . . . . Salvage Created 387 | . 159 59 . . 169 Parts 19 | . 6 5 . . 8 Haulers Intercepted 1 | . . . . . 1 Recyclers Shooed 1 | . 1 . . . . Parts Field Recycled . | . . . . . . Retrieved Matter . | . . . . . . Parts Self-Destructed . | . . . . . . Prevented . | . . . . . . Kills | -11 -10 -10 -10 -9 -8 ------- Run | Yrd Mat Min Exi Min Mat Combat Hostiles Destroyed 7 | . 2 2 . . 3 Guns 2 | . 2 . . . . AOE 3 | . . 2 . . 1 Classes Destroyed 6 | . 2 1 . . 3 Builder 1 | . . 1 . . . Hauler 1 | . . . . . 1 Recycler 1 | . 1 . . . . Grunt 5 | . 2 2 . . 1 Sentry 1 | . . . . . 1 Hunter 1 | . . . . . 1 Best Kill Streak 2 | . 2 2 . . 1 Combat Bots Only 2 | . 2 2 . . 1 Max Kills in Single Turn 2 | . 1 2 . . 1 Gunslinging . | . . . . . . Exploded 2 | . . 2 . . 1 Melee . | . . . . . . Uniques/NPCs Destroyed . | . . . . . . Combat | -11 -10 -10 -10 -9 -8 -------- Run | Yrd Mat Min Exi Min Mat Hostile Shots Fired 173 | . 14 8 . . 151 Missed 36 | . 2 1 . . 33 Damage Taken 2041 | . 163 85 . . 1793 Core 655 | . 70 29 . . 556 Absorbed by Shields . | . . . . . . Core Remaining (%) 80 | 100 . . . 60 . Volleys Fired 68 | . 12 5 . . 51 Largest 2 | . 2 2 . . 2 Hottest 160 | . 60 120 . . 160 Shots Fired 97 | . 24 10 . . 63 Gun 66 | . 24 5 . . 37 Cannon 17 | . . . . . 17 Launcher 4 | . . 2 . . 2 Special 10 | . . 3 . . 7 Kinetic 30 | . 12 5 . . 13 Thermal 51 | . . 3 . . 48 Explosive 4 | . . 2 . . 2 Electromagnetic 12 | . 12 . . . . Robot Hit Streak 22 | . 7 5 . . 22 Robot Miss Streak 2 | . 1 2 . . 2 Penetration Max . | . . . . . . Secondary Targets . | . . . . . . Shots Hit Robots 71 | . 19 6 . . 46 Core Hits 18 | . 6 4 . . 8 Critical Kills . | . . . . . . Critical Parts Destroyed . | . . . . . . Critical Strikes . | . . . . . . Melee Attacks . | . . . . . . Impact . | . . . . . . Slashing . | . . . . . . Piercing . | . . . . . . Sneak Attacks . | . . . . . . Combat Hostiles . | . . . . . . Follow-up Attacks . | . . . . . . Damage Inflicted 1101 | . 199 230 . . 672 Guns 522 | . 199 23 . . 300 Cannons 173 | . . . . . 173 Explosions 275 | . . 159 . . 116 Melee . | . . . . . . Ramming 11 | . . . . . 11 Kinetic 168 | . 88 23 . . 57 Thermal 536 | . . 48 . . 488 Explosive 275 | . . 159 . . 116 Electromagnetic 111 | . 111 . . . . Impact . | . . . . . . Slashing . | . . . . . . Piercing . | . . . . . . Highest Corruption . | . . . . . . Average Corruption . | . . . . . . Corruption Purged . | . . . . . . Corruption Blocked . | . . . . . . Overload Shots . | . . . . . . Overflow Damage . | . . . . . . Projectiles . | . . . . . . Explosions . | . . . . . . Melee . | . . . . . . Knockbacks . | . . . . . . Impact . | . . . . . . Kinetic . | . . . . . . Secondary . | . . . . . . Self-Inflicted Damage . | . . . . . . Shots . | . . . . . . Rammed 1 | . . . . . 1 Targets Rammed 1 | . . . . . 1 Kicked . | . . . . . . Crushed . | . . . . . . Highest Temperature 249 | . 164 45 . . 249 Average Temperature 75 | . 86 24 . . 80 Received Heat Transfer 729 | . 93 51 . . 585 Siege Activations . | . . . . . . Robots Corrupted 1 | . 1 . . . . Combat Hostiles . | . . . . . . Parts Fried . | . . . . . . Impact Corruptions . | . . . . . . Robots Melted 2 | . . . . . 2 Combat Hostiles 2 | . . . . . 2 Parts Melted 5 | . . . . . 5 Heat Transferred 1170 | . . 100 . . 1070 Parts Sabotaged . | . . . . . . Parts Stolen . | . . . . . . Parts Stripped . | . . . . . . Power Chain Reactions . | . . . . . . Alert | -11 -10 -10 -10 -9 -8 ------- Run | Yrd Mat Min Exi Min Mat Peak Influence 111 | . 75 111 . . 50 Initial 28 | . . 28 . . . Average 22 | . 59 45 . . 6 Maximum Alert Level . | . . . . . . Low Security (%) 100 | 100 100 100 . 100 100 Level 1 . | . . . . . . Level 2 . | . . . . . . Level 3 . | . . . . . . Level 4 . | . . . . . . Level 5 . | . . . . . . High Security . | . . . . . . Max Security . | . . . . . . Squads Dispatched . | . . . . . . Investigation . | . . . . . . Extermination . | . . . . . . Reinforcement . | . . . . . . Assault . | . . . . . . Garrison . | . . . . . . Intercept . | . . . . . . Searches Triggered . | . . . . . . Construction Impeded . | . . . . . . Haulers Reinforced . | . . . . . . Active Scanning Responses . | . . . . . . Cargo Convoy Interrupts . | . . . . . . Stealth | -11 -10 -10 -10 -9 -8 --------- Run | Yrd Mat Min Exi Min Mat Distress Signals 2 | . . . . . 2 Communications Jammed . | . . . . . . Distress Signals . | . . . . . . Times Spotted 18 | . 3 2 . . 13 Peak Tracking Total 6 | . 2 2 . . 6 Tactical Retreats . | . . . . . . Traps | -11 -10 -10 -10 -9 -8 ------- Run | Yrd Mat Min Exi Min Mat Traps Triggered . | . . . . . . Indirectly . | . . . . . . Trap Hack Attempts . | . . . . . . Triggered . | . . . . . . Disarmed . | . . . . . . Reprogrammed . | . . . . . . Reused . | . . . . . . Traps Extracted . | . . . . . . Installed . | . . . . . . Triggered . | . . . . . . Machines | -11 -10 -10 -10 -9 -8 ---------- Run | Yrd Mat Min Exi Min Mat Machines Disabled 1 | . . 1 . . . Max in Single Turn 1 | . . 1 . . . Machines Repaired . | . . . . . . Machines Dismantled . | . . . . . . Machines Sabotaged . | . . . . . . Overloaded Fab Kills . | . . . . . . Hacking | -11 -10 -10 -10 -9 -8 --------- Run | Yrd Mat Min Exi Min Mat Machines Accessed 13 | . 4 . 4 1 4 Terminals 7 | . 4 . . . 3 Fabricators . | . . . . . . Repair Stations . | . . . . . . Recycling Units . | . . . . . . Scanalyzers 1 | . . . . . 1 Garrison Access . | . . . . . . Total Hacks 62 | . 5 . 49 1 7 Successful 58 | . 2 . 49 1 6 Failed 4 | . 3 . . . 1 Catastrophic 1 | . . . . . 1 Database Lockouts . | . . . . . . Manual 4 | . . . 3 1 . Terminals 9 | . 5 . . . 4 Fabricators . | . . . . . . Repair Stations . | . . . . . . Recycling Units . | . . . . . . Scanalyzers 3 | . . . . . 3 Garrison Access . | . . . . . . Terminal Hacks 55 | . 2 . 49 1 3 Record 49 | . . . 49 . . Open Door 1 | . . . . 1 . Terminal Index 2 | . 1 . . . 1 Recall Investigation 1 | . . . . . 1 Zone Layout 2 | . 1 . . . 1 Fabricator Hacks . | . . . . . . Repair Station Hacks . | . . . . . . Recycling Unit Hacks . | . . . . . . Scanalyzer 3 | . . . . . 3 Insert Component 2 | . . . . . 2 Analyze 1 | . . . . . 1 Garrison Access Hacks . | . . . . . . Unauthorized Hacks . | . . . . . . Terminals . | . . . . . . Fabricators . | . . . . . . Repair Stations . | . . . . . . Recycling Units . | . . . . . . Scanalyzers . | . . . . . . Garrison Access . | . . . . . . Data Cores Recovered . | . . . . . . Used . | . . . . . . Hacking Detections 2 | . . . . . 2 Full Trace Events . | . . . . . . Feedback Events . | . . . . . . Feedback Blocked . | . . . . . . Robot Schematics Acquired . | . . . . . . Robots Built . | . . . . . . Authchips . | . . . . . . Time . | . . . . . . Total Robot Build Rating . | . . . . . . Part Schematics Acquired . | . . . . . . Parts Built . | . . . . . . Authchips . | . . . . . . Time . | . . . . . . Total Part Build Rating . | . . . . . . Parts Repaired . | . . . . . . Time . | . . . . . . Parts Recycled . | . . . . . . Recycled Matter . | . . . . . . Retrieved Matter . | . . . . . . Retrieved Components . | . . . . . . Parts Scanalyzed 1 | . . . . . 1 Part Schematics Acquired . | . . . . . . Parts Damaged . | . . . . . . Bothacking | -11 -10 -10 -10 -9 -8 ------------ Run | Yrd Mat Min Exi Min Mat Used RIF Installer . | . . . . . . Robots Hacked . | . . . . . . Non-combat . | . . . . . . Combat . | . . . . . . Robot Hacks Applied . | . . . . . . Relay Couplers Released . | . . . . . . Fabnet Peak Effective % . | . . . . . . Robots Rewired . | . . . . . . Allies Hacked . | . . . . . . Hacks Repelled . | . . . . . . Allies | -11 -10 -10 -10 -9 -8 -------- Run | Yrd Mat Min Exi Min Mat Total Allies 2 | . . 2 . . . Largest Group 2 | . . 2 1 . . Highest-Rated Group 47 | . . 47 16 . . Highest-Rated Ally 31 | . . 31 16 . . Total Orders . | . . . . . . Ally Attacks . | . . . . . . Total Damage . | . . . . . . Kills . | . . . . . . Allies Corrupted . | . . . . . . Allies Melted . | . . . . . . Intel | -11 -10 -10 -10 -9 -8 ------- Run | Yrd Mat Min Exi Min Mat Robot Analysis Total . | . . . . . . Derelict Logs Recovered 1 | . . . . 1 . Drone Launches . | . . . . . . Drone Recoveries . | . . . . . . Exploration | -11 -10 -10 -10 -9 -8 ------------- Run | Yrd Mat Min Exi Min Mat Turns Passed 2010 | 55 336 189 524 210 696 Spaces Moved 1619 | 40 319 171 572 231 286 Core 28 | 2 . . . . 26 Treads 70 | . . . . . 70 Legs . | . . . . . . Wheels 1521 | 38 319 171 572 231 190 Hover . | . . . . . . Flight . | . . . . . . Fastest Speed 50 | 50 90 90 90 90 90 Average Speed 104 | 90 90 90 90 90 169 Slowest Speed 600 | 100 90 90 90 90 600 Overloaded Moves . | . . . . . . Propulsion Burnouts . | . . . . . . Robots Hopped . | . . . . . . Cave-ins Triggered . | . . . . . . Time Travels 1 | . . . 1 . . Exploration Rate (%) 42 | 4 39 26 90 75 23 Regions Visited 5 Branch Regions 3 Pre-discovered Areas 2 | . . . 1 1 . Known Exits Taken . | . . . . . . Unknown Exits Taken 5 | 1 1 1 1 1 . Scrap Searched 1 | . . . . 1 . Spaces Dug 3 | . . . . . 3 Terrain Destroyed 39 | . . 11 . . 28 Melee . | . . . . . . Projectile 5 | . . 1 . . 4 AOE 34 | . . 10 . . 24 Terrain Rammed . | . . . . . . Walls Destroyed . | . . . . . . Machines Disabled . | . . . . . . Actions | -11 -10 -10 -10 -9 -8 --------- Run | Yrd Mat Min Exi Min Mat Total 1827 | 56 347 190 580 233 421 Wait 75 | 3 4 7 . 1 60 Move 1614 | 39 318 170 571 230 286 Hop . | . . . . . . Pick Up 24 | 8 6 2 1 1 6 Fast Attach 11 | 4 2 1 1 . 3 Attach 12 | 2 . . . . 10 Detach 2 | . . . . . 2 Swap 8 | . 1 2 3 . 2 Drop 10 | . 4 3 2 1 . Fire 68 | . 12 5 . . 51 Melee . | . . . . . . Ram . | . . . . . . Kick . | . . . . . . Crush 1 | . . . . . 1 Escape Stasis . | . . . . . . Rewire 2 | . . . 2 . . Trap . | . . . . . . Miscellaneous . | . . . . . . Route ------- -11/Scrapyard -10/Materials (discovered 2 exits: [*Mat] / [*Min]) -10/Mines (discovered 3 exits: [*Mat x2] / *Exi) -10/Exiles -9/Mines -8/Materials History --------- Turn | Location | Event 8 | -11/Scrapyard | Discovered new exit (range 16) 56 | -11/Scrapyard | Entered Materials 167 | -10/Materials | Discovered new exit (range 6) 292 | -10/Materials | Discovered new exit (range 12) 315 | -10/Materials | Build established: Mutant 392 | -10/Materials | Entered Mines 497 | -10/Mines | Discovered new exit (range 10) 499 | -10/Mines | Received a Rocket Launcher from a helpful Derelict 522 | -10/Mines | Deemed a non-threat by the Exiles lab entrance 522 | -10/Mines | Discovered new exit (range 5) 540 | -10/Mines | Discovered new exit (range 5) 581 | -10/Mines | Entered Exiles 581 | -10/Exiles | Accompanied by 1 ally 608 | -10/Exiles | Met 8R-AWN 625 | -10/Exiles | Met EX-HEX 674 | -10/Exiles | Met EX-BIN 685 | -10/Exiles | Aligned with FarCom system 686 | -10/Exiles | Given EX-Vault access code 746 | -10/Exiles | Opened EX-Vault 751 | -10/Exiles | Found Prototype Device 767 | -10/Exiles | Identified Chronowheel 767 | -10/Exiles | Activated Chronowheel 767 | -10/Exiles | Spacetime reconverged on an earlier point 782 | -10/Exiles | Found Prototype Processor 782 | -10/Exiles | Identified 0b10 Alert Chip 806 | -10/Exiles | Warned to stay clear of 0b10 Research branches 829 | -10/Exiles | Met EX-DEC 839 | -10/Exiles | Learned location of Zion (-6) 885 | -10/Exiles | Visited The Gauntlet 1096 | -10/Exiles | Discovered new exit (range 14) 1105 | -10/Exiles | Left Exiles lab with 0b10 Alert Chip 1105 | -10/Exiles | Entered Mines 1181 | -9/Mines | Found the Drone Emporium 1185 | -9/Mines | Found Prototype Device 1302 | -9/Mines | Learned location of Recycling (-9) 1307 | -9/Mines | Discovered new exit (range 9) 1315 | -9/Mines | Entered Materials 1315 | -8/Materials | Evolved 4 slots: Propulsion x1, Utility x3 1316 | -8/Materials | Identified Thief Drone Bay 1663 | -8/Materials | Core integrity fell below 50% 1698 | -8/Materials | Lost 10 parts (2p4n1u3w) 1973 | -8/Materials | Lost 3 parts (1p1u1w) 2001 | -8/Materials | Core integrity fell below 20% 2011 | -8/Materials | Destroyed by G-50 Soldier with Heavy Laser Last Messages --------------- 01843_ R-06 Scavenger collects Weight Redist. System. 01847_ R-06 Scavenger collects Imp. Ion Engine. 01853_ Acquired Lgt. Treads. 01854_ R-06 Scavenger collects Imp. Ion Engine. 01857_ Acquired 10 matter. 01862_ R-06 Scavenger collects Ion Engine. 01862_ Acquired Imp. Ion Engine. 01865_ Acquired Transport Network Coupler. 01866_ R-06 Scavenger collects Imp. Ion Engine. 01867_ Acquired 10 matter. 01869_ R-06 Scavenger collects Imp. Ion Engine. 01921_ W-25 Informer sends out distress signal. 01925_ Sml. Laser destroyed. 01938_ Lgt. Armor Plating destroyed. 01938_ Critical hit (Burn: +37). 01942_ Rnf. Ion Engine destroyed. 01951_ K-01 Serf cleans the Terminal. 01972_ Slammed into W-25 Informer. 01991_ Lgt. Treads destroyed. 02008_ G-47 Trooper destroyed. Map ----- +----------------------------------------------------+ | ??????# # Y" #????# #??????????# #??? | | ??????# # ] "" #????# #??????????# #??? | | ??????# # #????# #?????####?# #??? | | ??????# # """ #????# #????! #?###########??? | | ??????# # """ #????# #???? #??????????????? | | ??????# # """ #????# #??? " #??????????????? | | ??????# # #??###%###? """ #??????????????? | | ?????## #####+####### # "" #??????????????? | | ?????# # """ #??????????????? | | ?????# + "" #??????????????? | | ?????# Yk # """ #??????????????? | | ?????### ### ######## # """ #??????????????? | | ???????# #?# #??????# g ##? """ #??????????????? | | ???????# #?# #??????# = #?? " #??????????????? | | ???????# #?# #??????# % #??? #??????????????? | | ???????# #?# #??????? g#??? #??????????????? | | ??????? #?# #??????? #????####??????????????? | | ???????###?# #??????? ??????????????????????? | | ???????????# #??????## ??????????????????????? | | ???????????# #??????# ??????????????????????? | | ???????????# #??????# ??????????????????????? | | ????????####"#####??# ??????????????????????? | | ????????# #??# #??????????????????????? | | ????????# """"" #???# #??????????????????????? | | ????????# """"" #???# #??????????????????????? | | ????????# """"" #???# @#??????????????????????? | | ????????# #???# #??????????????????????? | | ????????# "" #???# #??????????????????????? | | ????????# """#???# k #??????????????????????? | | ????????# S"#???# #??????????????????????? | | ????????# #???# #??????????????????????? | | ????????#####+####??## ##?????????????????????? | | ??????????# ##### #?????????????????????? | | ??????????# #?????????????????????? | | ??????????# #?????????????????????? | | ??????????# #?????????????????????? | | ??????????# ##### #?????????????????????? | | ??????????## ############?????????????????????? | | ???????????# # #???????????????????????? | | ???????????# + """"" #???????????????????????? | | ???????????# # """"" #???????????????????????? | | ???????????# # """"" #???????????????????????? | | ???????????##### """"" #???????????????????????? | | ???????????????# """"" #???????????????????????? | | ???????????????# """"" #???????????????????????? | | ???????????????# """"" #???????????????????????? | | ???????????????# ??? #???????????????????????? | | ???????????????###???####???????????????????????? | | ????????????????????????????????????????????????? | | ????????????????????????????????????????????????? | +----------------------------------------------------+ Best States ------------- Heat Dissipation 31 Energy Generation 12 Energy Capacity 375 Matter Stores 302 Matter Capacity 450 Sight Range 16 Terrain Scan Density 10 Armor Coverage 150 Evasion (%) 42 Recoil Reduction 1 Item Schematics ----------------- None Robot Schematics ------------------ None Fabricated ------------ Nothing Alien Tech Used ----------------- None Achievements -------------- None Challenges ------------ None Game ------ Seed PointMissileRefractor Manual? 0 Play Time 00:35:31 Cumulative 38.0 hours Start 2024.07.04 @ 18:04:45 End 2024.07.04 @ 18:54:06 Sessions 1 Manual Loads 0 Difficulty Rogue Special Mode None Game No. 23 Rogue 23 Adventurer 0 Explorer 0 Win Type - Total 0 Types 0/0/0/0/0/0/0/0/0 Lore% 15 Gallery% 33 Achievement% 23 Wizard Run 0 Options --------- Layout 0 ASCII 0 Keyboard 0 Movement Mouse Keybinds 0 Fullscreen 1 Font 18/SmallcapsGlow Map View 76x50 Zoom Use 0% Tactical HUD 1 Map Filters NONE Filters NONE Steam 1 RUN: 3099e18c-3938-41d4-88cb-bc551cf2a128